bitfinex/quotes_SOLUSD_20251202
["timestamp","ask_amount","ask_price","bid_price","bid_amount"]
[1764688158977,8.63166567,134.4,134.34,16.07546498]
[1764688159173,8.63166567,134.41,134.36,8.63166567]
[1764688159377,8.63166567,134.43,134.38,8.63166567]
[1764688159577,8.63166567,134.43,134.38,17.27166567]
[1764688159778,8.63166567,134.42,134.38,8.64]
[1764688160178,0.69,134.43,134.38,8.64]
[1764688160376,9.32166567,134.43,134.39,26.04360442]
[1764688160687,8.63166567,134.43,134.4,8.80994492]
[1764688160885,0.69,134.45,134.4,8.80994492]
[1764688161281,8.63166567,134.44,134.4,8.80994492]
[1764688161589,9.32166567,134.45,134.41,8.64]
[1764688162187,8.63166567,134.47,134.42,8.80994492]
[1764688162391,8.63166567,134.46,134.43,26.03585509]
[1764688162877,9.32166567,134.46,134.43,26.03585509]
[1764688163084,0.69,134.45,134.41,8.64]
[1764688163284,8.63166567,134.43,134.41,8.64]
[1764688163491,8.63166567,134.45,134.4,24.88208678]
[1764688163877,9.32166567,134.45,134.4,24.88208678]
[1764688164082,8.63166567,134.43,134.4,7.44047619]
[1764688164596,0.69,134.43,134.4,26.04166666]
[1764688164776,9.32166567,134.42,134.4,7.44047619]
[1764688164977,9.32166567,134.42,134.39,26.04339626]
[1764688165177,9.32166567,134.42,134.39,7.44082167]
[1764688165479,0.69,134.42,134.39,26.04339626]
[1764688165671,8.63166567,134.43,134.39,26.04339626]
[1764688165871,8.63166567,134.42,134.39,26.04339626]
[1764688166070,8.63166567,134.4,134.37,16.08195202]
[1764688166270,8.63166567,134.38,134.35,26.05087767]
[1764688166485,0.69,134.38,134.35,18.60763242]
[1764688166687,9.32166567,134.38,134.35,18.60763242]
[1764688166888,9.32166567,134.38,134.34,7.44379931]
[1764688166889,8.63166567,134.37,134.34,7.44379931]
[1764688167100,8.63166567,134.36,134.34,7.44379931]
[1764688167383,8.63166567,134.38,134.34,34.86324251]
[1764688167574,0.69,134.45,134.34,7.44379931]
[1764688167780,8.63166567,134.37,134.34,7.44379931]
[1764688167995,8.63166567,134.37,134.34,26.05329759]
[1764688168185,0.69,134.36,134.34,26.05329759]
[1764688168380,0.69,134.36,134.34,7.44379931]
[1764688168692,9.32166567,134.36,134.34,7.44379931]
[1764688168910,9.32166567,134.36,134.3,37.22855398]
[1764688168911,8.63166567,134.35,134.24,0.2]
[1764688169191,8.63166567,134.34,134.29,8.63166567]
[1764688169376,9.32166567,134.34,134.29,8.64]
[1764688169566,0.69,134.33,134.29,8.64]
[1764688169767,0.69,134.33,134.29,17.27166567]
[1764688169966,9.32166567,134.33,134.29,8.64]
[1764688170162,8.63166567,134.3,134.24,0.2]
[1764688170398,8.63166567,134.28,134.24,7.64909336]
[1764688170781,0.69,134.28,134.25,8.80994492]
[1764688171166,0.69,134.3,134.25,8.80994492]
[1764688171391,8.63166567,134.28,134.25,8.80994492]
[1764688171695,8.63166567,134.29,134.25,8.80994492]
[1764688171909,8.63166567,134.3,134.26,8.64]
[1764688172081,0.69,134.36,134.27,8.80994492]
[1764688172409,8.63166567,134.31,134.27,8.80994492]
[1764688172929,8.63166567,134.29,134.26,8.64]
[1764688173071,8.63166567,134.28,134.24,9.00994492]
[1764688173271,8.63166567,134.27,134.24,0.2]
[1764688173577,8.63166567,134.28,134.25,16.308864]
[1764688174092,8.63166567,134.28,134.25,8.80994492]
[1764688174478,26.05135838,134.35,134.27,25.11880892]
[1764688174479,0.66,134.33,134.27,25.11880892]
[1764688174683,8.63166567,134.32,134.27,25.11880892]
[1764688174911,8.63166567,134.29,134.27,16.166864]
[1764688175275,9.29166567,134.29,134.27,16.166864]
[1764688175582,8.63166567,134.3,134.27,23.61454404]
[1764688175994,9.29166567,134.29,134.27,23.61454404]
[1764688176703,9.29166567,134.29,134.27,7.44768004]
[1764688176887,8.63166567,134.29,134.26,18.61974121]
[1764688177073,0.66,134.29,134.26,18.61974121]
[1764688177387,0.66,134.29,134.25,26.07076349]
[1764688177591,8.63166567,134.31,134.27,8.80994492]
[1764688178103,9.29166567,134.31,134.27,8.80994492]
[1764688178591,0.66,134.31,134.28,7.4471254]
[1764688179096,9.29166567,134.35,134.29,8.80994492]
[1764688179288,8.63166567,134.34,134.29,17.44161059]
[1764688179498,0.66,134.37,134.3,8.63166567]
[1764688179684,0.66,134.38,134.29,8.80994492]
[1764688179885,8.63166567,134.33,134.29,8.80994492]
[1764688180295,9.29166567,134.33,134.29,8.80994492]
[1764688180498,0.66,134.32,134.28,34.70493892]
[1764688180712,0.66,134.32,134.26,33.52984535]
[1764688180915,8.63166567,134.3,134.26,43.5187666]
[1764688181414,8.63166567,134.28,134.26,7.44823476]
[1764688181718,0.66,134.29,134.26,8.80994492]
[1764688181719,8.63166567,134.29,134.26,8.80994492]
[1764688181922,9.31166567,134.29,134.26,8.80994492]
[1764688182081,8.63166567,134.3,134.26,8.80994492]
[1764688182282,0.68,134.34,134.27,17.27166567]
[1764688182485,8.63166567,134.33,134.27,17.27166567]
[1764688182715,0.68,134.34,134.29,8.80994492]
[1764688182893,8.63166567,134.33,134.29,8.80994492]
[1764688183203,8.63166567,134.32,134.29,8.80994492]
[1764688183402,8.63166567,134.35,134.31,8.80994492]
[1764688183602,18.60203738,134.4,134.31,17.44161059]
[1764688183603,7.44056207,134.4,134.31,17.44161059]
[1764688183916,8.63166567,134.35,134.31,8.80994492]
[1764688184428,7.44056207,134.4,134.31,8.80994492]
[1764688184704,0.68,134.38,134.31,16.25501983]
[1764688184878,8.63166567,134.35,134.31,16.25501983]
[1764688185079,8.63166567,134.37,134.32,8.63166567]
[1764688185286,0.68,134.38,134.33,17.44994492]
[1764688185487,9.31166567,134.38,134.33,17.44994492]
[1764688185706,18.59607918,134.44,134.35,8.80994492]
[1764688185707,8.63166567,134.4,134.35,8.80994492]
[1764688185890,9.31166567,134.4,134.35,8.80994492]
[1764688186090,9.31166567,134.39,134.34,8.80994492]
[1764688186297,8.63166567,134.38,134.34,8.80994492]
[1764688186512,9.31166567,134.38,134.34,8.80994492]
[1764688186716,0.68,134.39,134.35,26.05135838]
[1764688187812,9.31166567,134.41,134.36,17.44994492]
[1764688188018,0.68,134.41,134.36,17.44994492]
[1764688188218,8.63166567,134.41,134.36,26.08161059]
[1764688188403,9.31166567,134.41,134.36,26.08161059]
[1764688188604,9.31166567,134.41,134.37,26.04748083]
[1764688189001,8.63166567,134.42,134.38,8.80994492]
[1764688189325,8.63166567,134.39,134.37,7.44213738]
[1764688189824,7.43889445,134.43,134.35,18.60773169]
[1764688189825,9.31166567,134.38,134.35,7.44314726]
[1764688190126,8.63166567,134.37,134.35,7.44314726]
[1764688190306,9.31166567,134.37,134.35,7.44314726]
[1764688190504,8.63166567,134.38,134.35,7.44314726]
[1764688190810,0.68,134.4,134.35,7.44314726]
[1764688191018,8.63166567,134.37,134.35,7.44314726]
[1764688191428,0.68,134.37,134.34,8.64]
[1764688191725,0.68,134.37,134.34,16.08377686]
[1764688191926,9.31166567,134.37,134.34,16.08377686]
[1764688192423,71.86052806,134.45,134.35,25.11880892]
[1764688192424,8.63166567,134.38,134.35,25.11880892]
[1764688192597,0.68,134.4,134.36,7.44269127]
[1764688192798,8.63166567,134.39,134.36,7.44269127]
[1764688193026,8.63166567,134.37,134.35,7.44320485]
[1764688193232,9.31166567,134.39,134.35,7.44320485]
[1764688193526,0.68,134.39,134.35,26.05131798]
[1764688193827,9.31166567,134.39,134.35,26.05131798]
[1764688194333,8.63166567,134.37,134.35,7.44320485]
[1764688194906,9.31166567,134.38,134.35,7.44320485]
[1764688195234,0.68,134.38,134.35,26.05131798]
[1764688195442,9.31166567,134.38,134.35,7.44320485]
[1764688195937,8.63166567,134.38,134.35,7.44320485]
[1764688196236,0.68,134.38,134.35,7.44320485]
[1764688196538,0.68,134.4,134.35,26.05131798]
[1764688196836,0.68,134.38,134.35,26.05131798]
[1764688197049,8.63166567,134.37,134.35,7.44320485]
[1764688197347,9.31166567,134.38,134.35,7.44320485]
[1764688197637,8.63166567,134.39,134.35,7.44320485]
[1764688197815,8.63166567,134.4,134.35,43.49292857]
[1764688198018,8.11881574,134.43,134.35,43.49292857]
[1764688198234,0.68,134.42,134.35,34.8612629]
[1764688198424,8.63166567,134.4,134.35,43.49292857]
[1764688198731,8.63166567,134.41,134.37,26.04748083]
[1764688198943,0.68,134.42,134.38,17.44161059]
[1764688199236,0.68,134.42,134.38,25.11880892]
[1764688199445,9.31166567,134.42,134.38,25.11880892]
[1764688199646,0.68,134.42,134.38,25.11880892]
[1764688200031,9.31166567,134.42,134.38,25.11880892]
[1764688200437,8.63166567,134.43,134.38,33.75047459]
[1764688200745,8.63166567,134.39,134.21,70.83230261]
[1764688200917,8.11936914,134.42,134.33,8.80994492]
[1764688201116,30.94166567,134.52,134.37,8.63166567]
[1764688201117,0.68,134.41,134.37,8.63166567]
[1764688201314,0.68,134.41,134.36,8.80994492]
[1764688201520,0.68,134.44,134.39,25.11880892]
[1764688201741,9.31166567,134.44,134.39,25.11880892]
[1764688202245,0.68,134.43,134.39,25.11880892]
[1764688202631,9.31166567,134.43,134.39,25.11880892]
[1764688202831,8.63166567,134.41,134.38,16.08112943]
[1764688203025,0.68,134.42,134.38,34.68508835]
[1764688203527,0.68,134.42,134.39,8.80994492]
[1764688203728,0.68,134.48,134.42,8.80994492]
[1764688203942,8.63166567,134.46,134.42,8.64]
[1764688204254,0.68,134.47,134.42,17.44161059]
[1764688204455,5.1684353,134.43,134.37,34.68733285]
[1764688204623,0.68,134.46,134.38,8.80994492]
[1764688204834,5.1684353,134.42,134.38,7.44124297]
[1764688205133,5.1684353,134.4,134.38,7.44154131]
[1764688205319,5.1684353,134.41,134.38,7.44154131]
[1764688205625,5.1684353,134.39,134.37,8.64]
[1764688205824,5.1684353,134.39,134.35,7.44311222]
[1764688206030,5.8484353,134.38,134.35,7.44311222]
[1764688206244,5.1684353,134.39,134.35,7.44311222]
[1764688206553,8.64,134.45,134.33,5.1684353]
[1764688206720,8.64,134.45,134.33,8.80994492]
[1764688206721,5.1684353,134.37,134.33,8.80994492]
[1764688206921,5.1684353,134.37,134.35,16.308864]
[1764688207140,5.8484353,134.39,134.35,16.308864]
[1764688207349,0.68,134.38,134.35,16.308864]
[1764688207547,5.8484353,134.38,134.35,16.308864]
[1764688207733,5.8484353,134.4,134.36,8.80994492]
[1764688208042,7.43846089,134.44,134.37,5.1684353]
[1764688208247,5.1684353,134.41,134.36,30.28724422]
[1764688208638,0.68,134.4,134.36,30.28724422]
[1764688208837,0.68,134.4,134.37,7.44213738]
[1764688209034,0.68,134.4,134.36,23.75132038]
[1764688209235,5.8484353,134.4,134.36,42.35804857]
[1764688209848,5.8484353,134.39,134.36,16.308864]
[1764688210143,5.8484353,134.39,134.36,23.75151451]
[1764688210353,0.68,134.39,134.36,23.75151451]
[1764688210568,5.8484353,134.39,134.36,23.75151451]
[1764688211160,0.68,134.39,134.36,23.75151451]
[1764688211367,0.68,134.39,134.36,42.3582427]
[1764688211751,5.8484353,134.39,134.36,23.75151451]
[1764688211939,5.1684353,134.38,134.36,16.308864]
[1764688212139,5.8284353,134.38,134.36,16.308864]
[1764688212344,0.66,134.38,134.36,23.50152157]
[1764688212555,5.8284353,134.37,134.34,26.05192827]
[1764688212756,5.1684353,134.36,134.33,7.44416517]
[1764688212949,5.8284353,134.36,134.32,16.2548526]
[1764688213556,5.1684353,134.33,134.31,7.4452566]
[1764688213868,5.1684353,134.32,134.25,5.1684353]
[1764688214046,5.1684353,134.29,134.25,7.44878957]
[1764688214444,5.8284353,134.28,134.24,8.84]
[1764688214750,5.1684353,134.25,134.24,0.2]
[1764688214951,12.61722487,134.25,134.18,0.2]
[1764688215157,5.1684353,134.21,134.18,0.2]
[1764688215457,5.1684353,134.22,134.18,0.2]
[1764688215846,5.8284353,134.21,134.18,0.2]
[1764688216052,5.1684353,134.19,134.18,0.2]
[1764688216371,0.66,134.2,134.18,0.2]
[1764688216543,5.1684353,134.2,134.18,0.2]
[1764688216743,0.66,134.19,134.18,0.2]
[1764688216959,0.66,134.19,134.18,7.65267551]
[1764688217162,5.1684353,134.24,134.19,8.80994492]
[1764688217375,5.1684353,134.23,134.19,8.80994492]
[1764688217578,5.1684353,134.25,134.2,5.1684353]
[1764688217774,5.1684353,134.22,134.18,16.508864]
[1764688217973,0.66,134.27,134.19,8.80994492]
[1764688218282,5.8284353,134.26,134.21,8.80994492]
[1764688218484,0.66,134.26,134.21,13.97838022]
[1764688218673,0.66,134.26,134.22,5.1684353]
[1764688218982,5.1684353,134.3,134.25,13.97838022]
[1764688219174,0.66,134.31,134.26,5.1684353]
[1764688219362,5.8284353,134.31,134.26,5.1684353]
[1764688219868,5.1684353,134.31,134.25,8.80994492]
[1764688220073,0.66,134.3,134.25,8.80994492]
[1764688220281,5.1684353,134.32,134.27,5.1684353]
[1764688220464,5.8284353,134.32,134.26,5.1684353]
[1764688220663,0.66,134.32,134.27,8.80994492]
[1764688220870,5.1684353,134.31,134.27,7.44768004]
[1764688221077,0.66,134.32,134.28,5.1684353]
[1764688221278,5.8284353,134.34,134.29,5.1684353]
[1764688221488,0.66,134.38,134.32,5.1684353]
[1764688221662,5.1684353,134.37,134.32,5.1684353]
[1764688222065,5.1684353,134.35,134.31,8.80994492]
[1764688222797,5.1684353,134.36,134.31,13.97838022]
[1764688223092,5.8284353,134.35,134.31,16.25516821]
[1764688223675,0.66,134.35,134.31,16.25516821]
[1764688224475,0.66,134.39,134.32,5.1684353]
[1764688224685,5.1684353,134.4,134.35,13.97838022]
[1764688224880,7.43881574,134.43,134.37,7.44213738]
[1764688224881,5.1684353,134.41,134.37,7.44213738]
[1764688225191,5.1684353,134.38,134.33,7.44435345]
[1764688225391,8.09834158,134.44,134.33,7.44435345]
[1764688225584,5.1684353,134.39,134.34,13.97838022]
[1764688225890,5.1684353,134.4,134.35,5.1684353]
[1764688226372,5.1684353,134.38,134.34,17.42994492]
[1764688226977,5.1684353,134.38,134.34,7.44325687]
[1764688227180,5.8284353,134.37,134.34,7.44325687]
[1764688227484,5.8284353,134.36,134.33,16.06420766]
[1764688227876,5.8284353,134.35,134.31,7.44506648]
[1764688228077,5.8284353,134.35,134.3,24.928864]
[1764688228296,5.1684353,134.33,134.3,8.62]
[1764688228487,0.66,134.34,134.3,13.7884353]
[1764688229000,5.8284353,134.34,134.31,7.44546199]
[1764688229293,5.8284353,134.34,134.3,8.62]
[1764688229470,5.1684353,134.32,134.29,7.44657085]
[1764688229667,5.1684353,134.31,134.28,7.44695177]
[1764688230294,5.8284353,134.31,134.27,16.06749851]
[1764688230471,0.66,134.3,134.22,7.45045447]
[1764688230672,5.8284353,134.3,134.21,8.62]
[1764688231071,5.1684353,134.27,134.22,5.1684353]
[1764688231268,5.8284353,134.29,134.24,5.1684353]
[1764688231487,0.66,134.29,134.24,5.1684353]
[1764688231689,5.1684353,134.26,134.21,28.92801175]
[1764688231905,5.1684353,134.22,134.18,0.2]
[1764688232085,8.62,134.26,134.18,7.65264147]
[1764688232086,5.1684353,134.21,134.18,7.65264147]
[1764688232294,5.1684353,134.22,134.18,0.2]
[1764688232497,5.1684353,134.2,134.18,0.2]
[1764688233207,0.67,134.2,134.18,7.65267338]
[1764688233382,5.8384353,134.23,134.18,7.65267338]
[1764688233588,0.67,134.26,134.2,5.1684353]
[1764688233984,0.67,134.26,134.22,5.1684353]
[1764688234185,5.8384353,134.26,134.21,5.1684353]
[1764688234396,0.67,134.26,134.22,5.1684353]
[1764688234617,0.67,134.28,134.22,5.1684353]
[1764688234815,5.1684353,134.27,134.22,5.1684353]
[1764688235007,5.1684353,134.27,134.22,16.308864]
[1764688235200,5.1684353,134.27,134.23,7.44989942]
[1764688235399,0.67,134.26,134.21,8.62]
[1764688235618,0.67,134.29,134.22,5.1684353]
[1764688235907,5.1684353,134.28,134.23,5.1684353]
[1764688236115,0.67,134.29,134.23,5.1684353]
[1764688236287,5.8384353,134.29,134.24,5.1684353]
[1764688236495,5.8384353,134.31,134.26,5.1684353]
[1764688236909,5.8384353,134.33,134.27,5.1684353]
[1764688237106,5.1684353,134.4,134.28,7.4471254]
[1764688237416,0.67,134.33,134.29,5.1684353]
[1764688237617,5.1684353,134.31,134.25,17.42994492]
[1764688237810,0.67,134.33,134.25,17.42994492]
[1764688237999,5.1684353,134.31,134.26,5.1684353]
[1764688238311,0.67,134.33,134.26,31.23725698]
[1764688238516,5.8384353,134.32,134.26,31.23725698]
[1764688238889,5.1684353,134.31,134.25,24.87865568]
[1764688239092,7.44616577,134.3,134.21,8.80994492]
[1764688239291,7.44616577,134.3,134.24,16.308864]
[1764688239292,5.1684353,134.27,134.24,16.308864]
[1764688239510,0.67,134.29,134.24,8.80994492]
[1764688239805,5.1684353,134.27,134.22,13.97838022]
[1764688240106,0.67,134.29,134.21,26.07789236]
[1764688240107,5.1684353,134.25,134.21,26.07789236]
[1764688240304,5.1684353,134.24,134.21,7.45100961]
[1764688240505,5.1684353,134.23,134.2,16.07146081]
[1764688240816,5.1684353,134.24,134.19,7.45212012]
[1764688241013,5.1684353,134.23,134.19,26.08242044]
[1764688241200,5.1684353,134.22,134.19,7.45212012]
[1764688241686,0.69,134.22,134.19,7.45212012]
[1764688241890,0.69,134.21,134.18,23.96134958]
[1764688242498,0.69,134.21,134.18,47.76147365]
[1764688243397,18.61997325,134.27,134.18,47.76147365]
[1764688243601,5.1684353,134.2,134.18,0.2]
[1764688244102,5.1684353,134.21,134.18,0.2]
[1764688244295,5.8584353,134.22,134.18,7.65264445]
[1764688244695,0.69,134.22,134.18,7.65264445]
[1764688244901,5.1684353,134.23,134.18,12.82107975]
[1764688245299,7.4471254,134.28,134.19,5.1684353]
[1764688245499,0.69,134.22,134.2,16.308864]
[1764688245696,5.1684353,134.23,134.2,16.308864]
[1764688246092,0.69,134.27,134.2,21.8772993]
[1764688246323,5.1684353,134.25,134.2,21.4772993]
[1764688246501,0.69,134.24,134.2,21.4772993]
[1764688246707,5.8584353,134.25,134.2,21.4772993]
[1764688247020,5.1684353,134.3,134.2,16.308864]
[1764688247021,5.1684353,134.23,134.2,16.308864]
[1764688247206,0.69,134.24,134.2,16.308864]
[1764688247404,5.8584353,134.23,134.2,16.308864]
[1764688248205,5.1684353,134.22,134.2,23.76008478]
[1764688248523,0.69,134.22,134.2,23.76008478]
[1764688248697,0.69,134.22,134.18,16.27264317]
[1764688248901,5.8584353,134.22,134.18,16.27264317]
[1764688249098,0.69,134.22,134.18,0.2]
[1764688249298,5.8584353,134.22,134.18,7.65262552]
[1764688249632,0.69,134.22,134.18,7.65262552]
[1764688249825,0.69,134.22,134.18,0.2]
[1764688249826,5.8584353,134.22,134.18,0.2]
[1764688250126,5.8584353,134.22,134.18,26.2842711]
[1764688250496,5.1684353,134.22,134.18,26.2842711]
[1764688250822,5.1684353,134.19,134.18,0.2]
[1764688251196,5.1684353,134.2,134.18,0.2]
[1764688251396,5.1684353,134.22,134.18,7.65248199]
[1764688251612,5.8584353,134.22,134.18,7.65248199]
[1764688252005,5.8584353,134.25,134.19,5.1684353]
[1764688252205,5.8584353,134.25,134.2,7.45156482]
[1764688252425,5.1684353,134.22,134.18,16.508864]
[1764688252723,5.1684353,134.22,134.18,23.96131558]
[1764688252929,0.69,134.21,134.18,23.96131558]
[1764688253224,0.69,134.21,134.18,47.76143965]
[1764688253524,5.8584353,134.24,134.19,5.1684353]
[1764688253818,0.69,134.26,134.19,5.1684353]
[1764688254025,5.1684353,134.24,134.19,5.1684353]
[1764688254214,5.1684353,134.23,134.18,0.2]
[1764688254419,5.1684353,134.23,134.19,16.308864]
[1764688254625,7.44891183,134.25,134.19,16.308864]
[1764688254626,5.8584353,134.22,134.19,16.308864]
[1764688254806,0.69,134.22,134.19,16.308864]
[1764688255928,0.69,134.22,134.18,31.45242405]
[1764688256729,0.69,134.22,134.18,26.28398875]
[1764688256929,0.69,134.24,134.18,26.68398875]
[1764688257126,0.69,134.26,134.2,5.1684353]
[1764688257328,5.8584353,134.26,134.2,5.1684353]
[1764688257525,5.1684353,134.23,134.19,8.62]
[1764688258034,0.69,134.22,134.19,8.62]
[1764688258227,0.69,134.22,134.2,7.45156482]
[1764688258829,26.76692107,134.22,134.18,0.2]
[1764688259013,5.1684353,134.19,134.18,0.2]
[1764688259418,5.8584353,134.19,134.18,0.2]
[1764688260122,0.69,134.19,134.18,0.2]
[1764688260322,5.8584353,134.19,134.18,0.2]
[1764688260724,13.31055542,134.19,134.18,0.2]
[1764688260929,5.1684353,134.17,134.13,0.2]
[1764688261124,0.69,134.18,134.13,0.2]
[1764688261125,5.1684353,134.14,134.13,0.2]
[1764688261319,0.69,134.17,134.11,0.2]
[1764688261634,0.69,134.17,134.11,12.82485417]
[1764688261812,8.62,134.2,134.11,12.82485417]
[1764688261813,0.69,134.2,134.13,5.1684353]
[1764688262131,16.308864,134.24,134.11,26.99783263]
[1764688262132,5.1684353,134.16,134.11,30.96626793]
[1764688262332,5.1684353,134.15,134.11,7.15641887]
[1764688262632,5.1684353,134.15,134.09,5.1684353]
[1764688262633,5.1684353,134.14,134.09,5.1684353]
[1764688262929,5.1684353,134.14,134.08,8.80994492]
[1764688263114,5.1684353,134.13,134.08,13.97838022]
[1764688263316,5.1684353,134.12,134.07,13.7884353]
[1764688263530,5.1684353,134.1,134.05,12.62818506]
[1764688263732,5.1684353,134.1,134.05,13.32788651]
[1764688264029,5.8584353,134.14,134.09,5.1684353]
[1764688264330,5.8584353,134.14,134.09,12.62559521]
[1764688264331,0.69,134.14,134.09,12.62559521]
[1764688264539,5.1684353,134.16,134.11,5.1684353]
[1764688264718,5.8584353,134.17,134.12,5.1684353]
[1764688265040,5.1684353,134.17,134.12,5.1684353]
[1764688265333,5.1684353,134.17,134.13,5.1684353]
[1764688265334,0.69,134.17,134.13,5.1684353]
[1764688265534,5.1684353,134.19,134.14,5.1684353]
[1764688265834,0.69,134.2,134.16,13.97838022]
[1764688266135,5.1684353,134.17,134.13,8.80994492]
[1764688266331,5.1684353,134.16,134.12,16.308864]
[1764688266517,7.45353032,134.17,134.12,24.98458915]
[1764688266722,0.69,134.16,134.12,24.98458915]
[1764688266930,0.69,134.16,134.12,16.308864]
[1764688267317,8.67572515,134.17,134.12,32.44054728]
[1764688267518,0.69,134.16,134.12,32.44054728]
[1764688267712,8.67572515,134.2,134.15,8.67572515]
[1764688268131,0.69,134.19,134.15,8.67572515]
[1764688268617,0.69,134.19,134.15,8.80994492]
[1764688268618,9.36572515,134.19,134.15,8.80994492]
[1764688269010,9.36572515,134.18,134.14,7.45489786]
[1764688269231,0.69,134.18,134.14,16.308864]
[1764688269433,0.69,134.17,134.14,16.308864]
[1764688269641,8.67572515,134.18,134.14,24.98458915]
[1764688270118,9.36572515,134.17,134.14,16.308864]
[1764688270318,8.67572515,134.18,134.14,23.7632244]
[1764688270526,0.69,134.2,134.16,8.67572515]
[1764688270820,9.36572515,134.2,134.15,17.48567007]
[1764688271136,9.36572515,134.23,134.18,8.67572515]
[1764688271339,0.69,134.26,134.21,8.80994492]
[1764688271515,8.67572515,134.22,134.18,25.11880892]
[1764688271720,0.69,134.25,134.18,25.11880892]
[1764688271721,8.67572515,134.21,134.18,25.11880892]
[1764688272236,8.67572515,134.2,134.18,16.308864]
[1764688272420,0.7,134.2,134.16,7.45345091]
[1764688272735,18.62246251,134.25,134.17,8.80994492]
[1764688272937,0.7,134.27,134.21,8.80994492]
[1764688273159,0.7,134.27,134.2,24.98458915]
[1764688273160,8.67572515,134.22,134.2,16.308864]
[1764688273322,8.67572515,134.22,134.18,17.29572515]
[1764688273529,8.67572515,134.25,134.2,8.67572515]
[1764688273723,8.67572515,134.23,134.18,8.62]
[1764688273940,8.67572515,134.23,134.19,17.48567007]
[1764688274246,0.7,134.3,134.23,8.80994492]
[1764688274413,0.7,134.3,134.26,16.12395991]
[1764688274613,0.7,134.3,134.26,7.44823476]
[1764688274816,9.37572515,134.3,134.25,16.25857511]
[1764688275044,9.37572515,134.3,134.25,24.93430026]
[1764688275232,0.7,134.29,134.2,8.80994492]
[1764688275435,8.67572515,134.25,134.22,8.80994492]
[1764688275659,8.67572515,134.25,134.2,0.7]
[1764688275829,8.67572515,134.29,134.24,8.67572515]
[1764688276034,8.67572515,134.29,134.25,8.80994492]
[1764688276236,8.67572515,134.27,134.23,8.62]
[1764688276434,16.1246086,134.25,134.21,8.80994492]
[1764688276623,8.148159,134.27,134.22,8.80994492]
[1764688276830,8.67572515,134.26,134.22,8.80994492]
[1764688277050,0.7,134.27,134.22,8.80994492]
[1764688277260,8.67572515,134.26,134.22,8.80994492]
[1764688277461,9.37572515,134.27,134.22,17.48567007]
[1764688277652,8.67572515,134.28,134.24,8.80994492]
[1764688277848,0.7,134.29,134.24,8.80994492]
[1764688278078,26.05911696,134.31,134.24,16.308864]
[1764688278079,0.7,134.28,134.24,16.308864]
[1764688278279,8.67572515,134.26,134.22,8.80994492]
[1764688278575,8.67572515,134.27,134.22,24.93561113]
[1764688278777,8.14719143,134.28,134.22,16.25988598]
[1764688278982,8.67572515,134.26,134.22,16.25988598]
[1764688279173,0.7,134.27,134.21,16.2608027]
[1764688279481,8.67572515,134.22,134.16,19.33429558]
[1764688279652,8.67572515,134.21,134.17,7.45323097]
[1764688279978,8.67572515,134.2,134.16,16.77360214]
[1764688280151,8.67572515,134.19,134.16,8.62]
[1764688280357,0.7,134.25,134.12,9.37572515]
[1764688280358,8.67572515,134.17,134.12,9.37572515]
[1764688280554,8.67572515,134.17,134.13,7.45545366]
[1764688280771,0.7,134.16,134.1,9.37572515]
[1764688281082,7.45225822,134.19,134.12,8.67572515]
[1764688281268,7.45100961,134.21,134.14,8.67572515]
[1764688281472,8.67572515,134.18,134.14,8.80994492]
[1764688281671,16.308864,134.24,134.14,8.80994492]
[1764688281672,0.7,134.27,134.17,8.67572515]
[1764688281973,0.7,134.27,134.23,17.48567007]
[1764688282179,9.37572515,134.29,134.24,8.67572515]
[1764688282481,9.37572515,134.28,134.24,7.44934445]
[1764688282652,0.7,134.28,134.24,7.44934445]
[1764688282979,0.7,134.28,134.24,16.1250696]
[1764688283179,7.44669086,134.29,134.24,8.67572515]
[1764688283383,0.7,134.28,134.24,8.67572515]
[1764688284083,16.12241601,134.29,134.1,0.7]
[1764688284084,10.08521201,134.27,134.1,0.7]
[1764688284251,10.08521201,134.27,134.12,8.67572515]
[1764688284252,16.308864,134.23,134.12,8.67572515]
[1764688284461,26.07659066,134.22,134.14,8.67572515]
[1764688284668,8.67572515,134.17,134.14,7.45483727]
[1764688284863,7.45045447,134.22,134.16,16.308864]
[1764688285086,8.21520042,134.23,134.17,17.42994492]
[1764688285284,8.67572515,134.2,134.17,18.12994492]
[1764688285484,8.27572515,134.2,134.17,17.42994492]
[1764688285691,8.67572515,134.18,134.14,7.45483727]
[1764688285889,8.67572515,134.16,134.15,9.50994492]
[1764688286095,8.67572515,134.17,134.15,9.50994492]